Cogmind - Beta 13 X1 @@@ ROGUE MODE // 2023.06.24 @ 20:00:43 Player: LU-1G1 Result: Destroyed by S-27 Virus with Autogun Performance ------------- Evolutions (5) 2500 Regions Visited (12) 2400 Robots Destroyed (100) 500 Value Destroyed (2328) 2328 Prototype IDs (19) 380 Alien Tech Used (0) 0 Bonus (1392) 1392 TOTAL SCORE: 9500 Bonus ------- High Alert Combat Kills 18 Follower Combat Kills 259 Met Imprinter 300 Destroyed Z-Imprinter 1000 Friendly Fire -185 Cogmind --------- Core Integrity 0/1000 Matter 281/300 Energy 83/100 System Corruption 5% Temperature Cool (0) Movement Core (150) Ox2 Location -5/Extension Parts ------- > --- POWER (2) -------- (None) > --- PROPULSION (6) --- (None) > --- UTILITY (7) ------ (None) > --- WEAPON (2) ------- Gauss Rifle Impact Mace > --- INVENTORY (5) ---- Medium Treads Zionite Biocell (600) Zionite Biocell (600) GAL Module Peak State ------------ > --- POWER ------------ Light Fission Core Zionite Light DM Reactor > --- PROPULSION ------- Carbon-fiber Leg Flexi-carbon Leg Flexi-carbon Leg Zionite Composite Leg I Enhanced Flexi-carbon Leg Enhanced Flexi-carbon Leg > --- UTILITY ---------- Huge Storage Unit Advanced Visual Processing Unit Surveybot 24 Chip Improved Transmission Jammer Zionite Weapon Casing Zionite Heavy Carapace > --- WEAPON ----------- Improved Assault Rifle Power Maul > --- INVENTORY -------- Improved Deuterium Engine Medium Treads Experimental Heat Sink Experimental Heat Sink Improved Coolant Injector Zionite Biocell Zionite Biocell Zionite Biocell Zionite Biocell Machine Analyzer Improved Signal Interpreter Improved Kinecellerator Phase Shifter Zionite Weapon Casing Advanced Hacking Suite Improved Component Analysis Suite Heavy Phase Cannon Improved Assault Rifle Gauss Rifle Coil Gun Heavy Shock Bomb Launcher Precision Grenade Launcher Long-range Missile Launcher Long-range Missile Launcher GAL Module [Rating: 102] Favorites ----------- Power Ion Engine Engine Ion Engine Power Core Light Fission Core Reactor Zionite Light DM Reactor Propulsion Spiked Treads Treads Spiked Treads Leg Enhanced Flexi-carbon Leg Hover Unit Improved Airjet Flight Unit VTOL Module Utility Advanced Visual Processing Unit Device Seismic Detector Storage Small Storage Unit Processor Advanced Visual Processing Unit Protection Scrap Shield Weapon Improved Assault Rifle Energy Cannon Heavy Particle Cannon Ballistic Gun Improved Assault Rifle Launcher Grenade Launcher Impact Weapon Power Maul Slashing Weapon Chainsword Build | -11 -10 -10 -8 -7 -7 -7 -7 -7 -6 -6 -5 -5 ------- Run | Jun Mat Sub Mat Fac Low Low Zio Dee Pro Fac Fac Ext Slots Evolved 10 | . . . 4 2 . . . . . 2 2 . Power 1 | . . . . . . . . . . . 1 . Propulsion 4 | . . . 2 1 . . . . . 1 . . Utility 5 | . . . 2 1 . . . . . 1 1 . Weapon . | . . . . . . . . . . . . . Parts Attached 123 | 7 10 9 11 21 2 1 6 24 3 4 24 1 Power 10 | 1 1 . 1 2 . . . 2 . 1 2 . Engine 7 | 1 1 . 1 2 . . . 1 . . 1 . Core 1 | . . . . . . . . . . . 1 . Reactor 2 | . . . . . . . . 1 . 1 . . Propulsion 27 | 2 3 3 4 3 . 1 . 8 . . 3 . Treads 11 | 2 3 3 . . . . . 3 . . . . Leg 7 | . . . . . . . . 4 . . 3 . Wheel . | . . . . . . . . . . . . . Hover 2 | . . . . 1 . . . 1 . . . . Flight 7 | . . . 4 2 . 1 . . . . . . Utility 46 | 2 1 4 3 6 2 . 3 10 . 2 13 . Device 16 | 1 . . 2 . 1 . 2 4 . 1 5 . Storage 9 | 1 1 . 1 2 . . 1 2 . . 1 . Processor 8 | . . 1 . 4 1 . . . . 1 1 . Hackware . | . . . . . . . . . . . . . Protection 13 | . . 3 . . . . . 4 . . 6 . Artifact . | . . . . . . . . . . . . . Weapon 40 | 2 5 2 3 10 . . 3 4 3 1 6 1 Energy Gun . | . . . . . . . . . . . . . Energy Cannon 5 | . . . . 4 . . . . . . 1 . Ballistic Gun 18 | 2 3 1 3 . . . 1 3 1 1 2 1 Ballistic Cannon . | . . . . . . . . . . . . . Launcher 8 | . 2 1 . 3 . . . 1 1 . . . Special Weapon . | . . . . . . . . . . . . . Impact Weapon 7 | . . . . 2 . . 1 . 1 . 3 . Slashing Weapon 2 | . . . . 1 . . 1 . . . . . Piercing Weapon . | . . . . . . . . . . . . . Special Melee Weapon . | . . . . . . . . . . . . . Unidentified Prototypes 15 | . . . . 3 . . . 10 . . 2 . Parts Lost 29 | . . . 3 3 . . . 6 . . 16 1 Power 6 | . . . 1 1 . . . 1 . . 3 . Propulsion 10 | . . . . 2 . . . 4 . . 4 . Utility 11 | . . . 2 . . . . . . . 8 1 Weapon 2 | . . . . . . . . 1 . . 1 . Highest Loss Streak 11 | . . . 2 1 . . . 5 . . 11 1 To Critical Strikes . | . . . . . . . . . . . . . Average Slot Usage (%) 87 | . 100 85 58 75 84 85 99 93 92 86 82 9 Engine 9 | . 14 14 6 6 7 7 7 6 7 . . . Treads 15 | . 28 28 12 . . . . 11 7 6 1 . Leg 6 | . . . . . . . . 12 30 26 29 . Hover 1 | . . . . 4 7 7 7 3 . . . . Flight 6 | . . . 10 27 23 23 30 8 . . . . Device 5 | . 14 . 7 6 4 7 7 7 7 6 4 3 Storage 4 | . 14 . . 7 7 7 7 7 7 6 4 . Processor 7 | . . . . 14 25 23 23 12 7 13 11 . Protection 6 | . . 13 3 . . . . 4 7 6 8 . Ballistic Gun 13 | . 27 15 16 . . . 6 10 10 9 9 . Launcher 4 | . . 12 1 . . . . 1 1 3 . . Slashing Weapon 1 | . . . . 4 7 7 6 1 . . . . Naked Turns 1 | . . . . . . . . . . . 1 . Heaviest Build 113 | 11 48 48 29 17 14 14 17 68 68 69 113 7 Greatest Support 135 | 40 40 40 40 22 14 18 18 95 95 95 135 3 Greatest Overweight (x) 2 | . 1 1 1 . . . . 2 . . 1 2 Average Overweight (x) . | . . . . . . . . . . . . . Largest Inventory Capacity 25 | 8 20 20 10 10 8 8 8 20 20 20 25 5 Average Capacity 11 | 7 15 5 5 8 8 8 7 16 20 20 23 5 Most Carried 25 | 6 13 15 7 8 8 8 8 20 20 20 25 5 Average Carried 10 | 4 10 5 4 7 7 7 7 15 20 18 21 4 Final Capacity 20 | 8 20 5 10 8 8 8 8 20 20 20 5 5 Final Carried 20 | 6 13 5 7 8 8 8 8 20 20 19 5 4 Class Distribution -------------------- 33% | Mutant 30% | Scavenger-Mutant 15% | Scout 13% | Derelict-Mutant 5% | Sprinter Dominant Class ---------------- Mutant | -10/Materials Mutant | -10/Subcaves Derelict-Mutant | -8/Materials Sprinter | -7/Factory Scout | -7/Lower Caves Scout | -7/Lower Caves Scout | -7/Zion Scavenger-Mutant | -7/Deep Caves Scavenger-Mutant | -6/Proximity Caves Scavenger-Mutant | -6/Factory Scavenger-Mutant | -5/Factory Mutant | -5/Extension Resources | -11 -10 -10 -8 -7 -7 -7 -7 -7 -6 -6 -5 -5 ----------- Run | Jun Mat Sub Mat Fac Low Low Zio Dee Pro Fac Fac Ext Matter Collected 2727 | 300 230 290 338 366 40 10 57 291 118 . 687 . Remotely . | . . . . . . . . . . . . . Salvage Created 3356 | 176 528 204 340 529 81 20 . 87 70 . 1321 . Parts 211 | 15 44 17 26 33 2 2 . 5 5 . 62 . Haulers Intercepted 10 | . 2 . 3 2 . . . . . . 3 . Recyclers Shooed 1 | . . . . . . . . . . . 1 . Parts Field Recycled . | . . . . . . . . . . . . . Retrieved Matter . | . . . . . . . . . . . . . Parts Self-Destructed 13 | . . 6 . . 3 1 . . 3 . . . Prevented 5 | . . . . . . 1 . . 4 . . . Kills | -11 -10 -10 -8 -7 -7 -7 -7 -7 -6 -6 -5 -5 ------- Run | Jun Mat Sub Mat Fac Low Low Zio Dee Pro Fac Fac Ext Combat Hostiles Destroyed 64 | . 15 12 7 7 . 1 . 4 6 . 12 . Melee 3 | . . . 2 . . 1 . . . . . . Guns 26 | . 9 . 5 . . . . 1 . . 11 . Cannons 1 | . . . . . . . . . . . 1 . AOE 34 | . 6 12 . 7 . . . 3 6 . . . Classes Destroyed 18 | 2 4 3 2 2 1 . . 2 . . 2 . Worker 7 | . 1 . 1 2 . . . . . . 3 . Builder 5 | . . . . 3 . . . . . . 2 . Tunneler 6 | 4 1 . . . . . . . . . 1 . Hauler 10 | . 2 . 3 2 . . . . . . 3 . Recycler 6 | 1 . . . 4 . . . . . . 1 . Mechanic 1 | . . . . 1 . . . . . . . . Watcher 3 | . . . 1 . . . . . . . 2 . Swarmer 28 | . 6 4 4 7 . 1 . . 6 . . . Grunt 19 | . 9 . 2 . . . . . . . 8 . Sentry 1 | . . . 1 . . . . . . . . . Hunter 2 | . . . . . . . . . . . 2 . Programmer 2 | . . . . . . . . . . . 2 . Artisan 1 | . . 1 . . . . . . . . . . Subdweller 8 | . . 8 . . . . . . . . . . Zionite 1 | . . 1 . . . . . . . . . . Z-Light 1 | . . . . . . . . 1 . . . . Samaritan 2 | . . . . . 2 . . . . . . . Assembled 3 | . . . . . . . . 3 . . . . Best Kill Streak 7 | 4 4 4 7 6 . 1 . 3 4 . 5 . Combat Bots Only 5 | . 3 4 5 4 . 1 . 3 4 . 5 . Max Kills in Single Turn 4 | 1 3 2 1 4 1 1 . 2 3 . 2 . Gunslinging . | . . . . . . . . . . . . . Exploded 3 | . 3 2 . 2 . . . 2 3 . . . Melee 1 | . . . 1 . . 1 . . . . . . Uniques/NPCs Destroyed 1 | . . . . . . . . 1 . . . . Z-Imprinter (-7/Deep Caves) Combat | -11 -10 -10 -8 -7 -7 -7 -7 -7 -6 -6 -5 -5 -------- Run | Jun Mat Sub Mat Fac Low Low Zio Dee Pro Fac Fac Ext Damage Taken 6456 | . 433 638 512 126 . 107 . 761 219 . 3056 604 Core 1381 | . 87 48 86 26 . 25 . 80 15 . 574 440 Absorbed by Shields . | . . . . . . . . . . . . . Redirected to Shielding 298 | . . . . . . . . . . . 298 . Regen/Repaired (Parts) 165 | . . . . 43 . . 122 . . . . . Core Remaining (%) 81 | 100 . 46 84 . . . . . 79 100 . . Volleys Fired 290 | 17 53 40 49 14 . . 1 13 4 . 99 . Largest 2 | 2 2 1 2 1 . . 1 2 1 . 2 . Hottest 113 | 40 50 30 50 75 . . 23 46 36 . 113 . Shots Fired 466 | 34 105 40 60 14 . . 1 24 4 . 184 . Gun 396 | 34 102 . 60 . . . 1 22 . . 177 . Cannon 16 | . . . . 9 . . . . . . 7 . Launcher 54 | . 3 40 . 5 . . . 2 4 . . . Special . | . . . . . . . . . . . . . Kinetic 396 | 34 102 . 60 . . . 1 22 . . 177 . Thermal 16 | . . . . 9 . . . . . . 7 . Explosive 54 | . 3 40 . 5 . . . 2 4 . . . Electromagnetic . | . . . . . . . . . . . . . Robot Hit Streak 31 | 5 13 10 14 8 . . . 5 . . 31 . Robot Miss Streak 7 | 1 6 1 3 2 . . . 3 1 . 7 . Penetration Max . | . . . . . . . . . . . . . Secondary Targets 1 | . 1 . . . . . . . . . . . Max Gunslinging Chain 1 | . 1 . . . . . . . . . . . Shots Hit Robots 328 | 23 68 13 39 15 3 1 . 14 . . 152 . Core Hits 204 | 11 38 30 16 23 1 1 . 11 9 . 63 1 Critical Kills 2 | . . . . . . . . . . . 2 . Critical Parts Destroyed 5 | . 3 . 1 . . . . . . . 1 . Critical Strikes 7 | . 3 . 1 . . . . . . . 3 . Destroy 5 | . 3 . 1 . . . . . . . 1 . Smash 2 | . . . . . . . . . . . 2 . Melee Attacks 42 | . . . . 10 6 6 5 6 4 . 5 . Impact 12 | . . . . 1 . . 2 . 4 . 5 . Slashing 30 | . . . . 9 6 6 3 6 . . . . Piercing . | . . . . . . . . . . . . . Sneak Attacks 12 | . . . . 6 3 . . . . . 3 . Combat Hostiles . | . . . . . . . . . . . . . Follow-up Attacks 1 | . . . . 1 . . . . . . . . Damage Inflicted 8373 | 207 955 1252 623 1520 225 33 . 498 463 . 2592 5 Guns 3702 | 204 554 . 616 . . . . 186 . . 2142 . Cannons 184 | . . . . 150 . . . . . . 34 . Explosions 3106 | . 389 1252 . 837 . . . 165 463 . . . Melee 1185 | . . . . 533 225 33 . 147 . . 247 . Ramming 196 | 3 12 . 7 . . . . . . . 169 5 Kinetic 3702 | 204 554 . 616 . . . . 186 . . 2142 . Thermal 184 | . . . . 150 . . . . . . 34 . Explosive 3106 | . 389 1252 . 837 . . . 165 463 . . . Electromagnetic . | . . . . . . . . . . . . . Impact 376 | . . . . 129 . . . . . . 247 . Slashing 809 | . . . . 404 225 33 . 147 . . . . Piercing . | . . . . . . . . . . . . . Highest Corruption 5 | . . . . . . . . . . . 5 5 Average Corruption 3 | . . . . . . . . . . . 2 5 Corruption Purged . | . . . . . . . . . . . . . Corruption Blocked . | . . . . . . . . . . . . . Effects 3 | . . . . . . . . . . . 1 2 Message Errors 2 | . . . . . . . . . . . 1 1 Matter Fused 1 | . . . . . . . . . . . . 1 Overload Shots . | . . . . . . . . . . . . . Overflow Damage 402 | . . 1 . 128 104 . . 15 . . 154 . Projectiles . | . . . . . . . . . . . . . Explosions 51 | . . 1 . 50 . . . . . . . . Melee 351 | . . . . 78 104 . . 15 . . 154 . Knockbacks 1 | . . . . . . . . . . . 1 . Impact 1 | . . . . . . . . . . . 1 . Kinetic . | . . . . . . . . . . . . . Secondary . | . . . . . . . . . . . . . Self-Inflicted Damage 172 | . 22 90 . . . . . . 52 . 6 2 Shots 7 | . 2 4 . . . . . . 1 . . . Rammed 16 | 1 3 . 8 . . . . . . . 3 1 Targets Rammed 29 | 1 3 . 10 . . . . . . . 14 1 Kicked 11 | . . . . . . . . . . . 11 . Crushed 2 | . . . 2 . . . . . . . . . Highest Temperature 225 | . 19 . 8 6 . . . 7 . . 225 . Average Temperature 42 | . 8 . 4 2 . . . 6 . . 57 . Received Heat Transfer 1455 | . 189 129 180 15 . 36 . 189 12 . 588 117 Siege Activations . | . . . . . . . . . . . . . Robots Corrupted . | . . . . . . . . . . . . . Combat Hostiles . | . . . . . . . . . . . . . Parts Fried 1 | . . . . . . . . . . . 1 . Impact Corruptions 6 | . . . . . . . . . . . 6 . Robots Melted . | . . . . . . . . . . . . . Combat Hostiles . | . . . . . . . . . . . . . Parts Melted 1 | . . . . 1 . . . . . . . . Heat Transferred 259 | . . . . 222 . . . . . . 37 . Parts Sabotaged . | . . . . . . . . . . . . . Parts Stolen . | . . . . . . . . . . . . . Parts Stripped . | . . . . . . . . . . . . . Power Chain Reactions . | . . . . . . . . . . . . . Missiles Intercepted . | . . . . . . . . . . . . . Alert | -11 -10 -10 -8 -7 -7 -7 -7 -7 -6 -6 -5 -5 ------- Run | Jun Mat Sub Mat Fac Low Low Zio Dee Pro Fac Fac Ext Peak Influence 663 | 25 275 . 248 663 . . . . . 88 188 73 Initial 112 | . 16 . . 112 . . . . . 88 42 58 Average 121 | 12 111 . 125 409 . . . . . 88 61 62 Maximum Alert Level 2 | . 1 . 1 2 . . . . . . . . Low Security (%) 87 | 100 89 . 83 32 . . . . . 100 100 100 Level 1 7 | . 10 . 16 18 . . . . . . . . Level 2 5 | . . . . 49 . . . . . . . . Level 3 . | . . . . . . . . . . . . . Level 4 . | . . . . . . . . . . . . . Level 5 . | . . . . . . . . . . . . . High Security . | . . . . . . . . . . . . . Max Security . | . . . . . . . . . . . . . Squads Dispatched 15 | . 3 . 1 7 . . . . . . 2 2 Investigation 3 | . . . . 1 . . . . . . . 2 Extermination 2 | . . . . 1 . . . . . . 1 . Reinforcement 7 | . 3 . 1 2 . . . . . . 1 . Assault . | . . . . . . . . . . . . . Garrison 3 | . . . . 3 . . . . . . . . Intercept . | . . . . . . . . . . . . . Searches Triggered . | . . . . . . . . . . . . . Construction Impeded . | . . . . . . . . . . . . . Haulers Reinforced 1 | . . . . 1 . . . . . . . . Active Scanning Responses . | . . . . . . . . . . . . . Cargo Convoy Interrupts . | . . . . . . . . . . . . . Stealth | -11 -10 -10 -8 -7 -7 -7 -7 -7 -6 -6 -5 -5 --------- Run | Jun Mat Sub Mat Fac Low Low Zio Dee Pro Fac Fac Ext Distress Signals 7 | . 3 . 2 . . . . . . . 2 . Communications Jammed 19 | . . . . . . . . . . . 19 . Distress Signals 19 | . . . . . . . . . . . 19 . Times Spotted 152 | . 28 20 19 21 . 4 . 11 8 . 31 10 Peak Tracking Total 10 | . 4 6 7 6 . 3 . 3 5 . 7 10 Tactical Retreats 10 | . . 2 1 5 . 2 . . . . . . Traps | -11 -10 -10 -8 -7 -7 -7 -7 -7 -6 -6 -5 -5 ------- Run | Jun Mat Sub Mat Fac Low Low Zio Dee Pro Fac Fac Ext Traps Triggered 3 | . 1 1 . 1 . . . . . . . . Indirectly . | . . . . . . . . . . . . . Trap Hack Attempts . | . . . . . . . . . . . . . Triggered . | . . . . . . . . . . . . . Disarmed . | . . . . . . . . . . . . . Reprogrammed . | . . . . . . . . . . . . . Reused . | . . . . . . . . . . . . . Traps Extracted . | . . . . . . . . . . . . . Installed . | . . . . . . . . . . . . . Triggered 5 | . . . . . 2 1 . . 2 . . . Machines | -11 -10 -10 -8 -7 -7 -7 -7 -7 -6 -6 -5 -5 ---------- Run | Jun Mat Sub Mat Fac Low Low Zio Dee Pro Fac Fac Ext Machines Disabled . | . . . . . . . . . . . . . Max in Single Turn . | . . . . . . . . . . . . . Garrison Access 2 | . . . . 1 . . . . . . 1 . Machines Repaired . | . . . . . . . . . . . . . Machines Sabotaged . | . . . . . . . . . . . . . Overloaded Fab Kills . | . . . . . . . . . . . . . Hacking | -11 -10 -10 -8 -7 -7 -7 -7 -7 -6 -6 -5 -5 --------- Run | Jun Mat Sub Mat Fac Low Low Zio Dee Pro Fac Fac Ext Machines Accessed 22 | . 5 1 1 8 2 1 . . . . 2 2 Terminals 13 | . 5 . 1 4 . . . . . . 1 2 Fabricators 1 | . . . . 1 . . . . . . . . Repair Stations 1 | . . . . 1 . . . . . . . . Recycling Units . | . . . . . . . . . . . . . Scanalyzers . | . . . . . . . . . . . . . Garrison Access 3 | . . . . 2 . . . . . . 1 . Total Hacks 56 | . 14 3 3 20 6 1 . . . . 4 5 Successful 31 | . 7 3 . 11 6 1 . . . . 3 . Failed 25 | . 7 . 3 9 . . . . . . 1 5 Catastrophic 2 | . . . . 1 . . . . . . . 1 Database Lockouts . | . . . . . . . . . . . . . Manual 9 | . 4 . 3 1 . . 1 . . . . . Terminals 35 | . 14 . 3 10 . . . . . . 3 5 Fabricators 3 | . . . . 3 . . . . . . . . Repair Stations 4 | . . . . 4 . . . . . . . . Recycling Units . | . . . . . . . . . . . . . Scanalyzers . | . . . . . . . . . . . . . Garrison Access 4 | . . . . 3 . . . . . . 1 . Terminal Hacks 24 | . 7 3 . 5 6 1 . . . . 2 . Record 8 | . . 3 . . 5 . . . . . . . Robot Analysis 3 | . 3 . . . . . . . . . . . Prototype ID Bank 2 | . 1 . . 1 . . . . . . . . Open Door 2 | . . . . . 1 1 . . . . . . Level Access Points 1 | . . . . . . . . . . . 1 . Branch Access Points 1 | . . . . 1 . . . . . . . . Terminal Index 1 | . . . . . . . . . . . 1 . Alert Level 2 | . 2 . . . . . . . . . . . Locate Traps 1 | . . . . 1 . . . . . . . . Patrol Status 1 | . . . . 1 . . . . . . . . Hauler Manifests 1 | . 1 . . . . . . . . . . . Zone Layout 1 | . . . . 1 . . . . . . . . Fabricator Hacks 1 | . . . . 1 . . . . . . . . Network Status 1 | . . . . 1 . . . . . . . . Repair Station Hacks 4 | . . . . 4 . . . . . . . . Scan Component 2 | . . . . 2 . . . . . . . . Repair 2 | . . . . 2 . . . . . . . . Recycling Unit Hacks . | . . . . . . . . . . . . . Scanalyzer . | . . . . . . . . . . . . . Garrison Access Hacks 2 | . . . . 1 . . . . . . 1 . Seal Access 2 | . . . . 1 . . . . . . 1 . Unauthorized Hacks . | . . . . . . . . . . . . . Terminals . | . . . . . . . . . . . . . Fabricators . | . . . . . . . . . . . . . Repair Stations . | . . . . . . . . . . . . . Recycling Units . | . . . . . . . . . . . . . Scanalyzers . | . . . . . . . . . . . . . Garrison Access . | . . . . . . . . . . . . . Data Cores Recovered . | . . . . . . . . . . . . . Used . | . . . . . . . . . . . . . Hacking Detections 16 | . 5 . 1 7 . . . . . . 1 2 Full Trace Events 4 | . 1 . . 1 . . . . . . . 2 Feedback Events . | . . . . . . . . . . . . . Feedback Blocked . | . . . . . . . . . . . . . Robot Schematics Acquired . | . . . . . . . . . . . . . Robots Built . | . . . . . . . . . . . . . Authchips . | . . . . . . . . . . . . . Time . | . . . . . . . . . . . . . Total Robot Build Rating . | . . . . . . . . . . . . . Part Schematics Acquired . | . . . . . . . . . . . . . Parts Built . | . . . . . . . . . . . . . Authchips . | . . . . . . . . . . . . . Time . | . . . . . . . . . . . . . Total Part Build Rating . | . . . . . . . . . . . . . Parts Repaired 2 | . . . . 2 . . . . . . . . Time 35 | . . . . 35 . . . . . . . . Parts Recycled . | . . . . . . . . . . . . . Recycled Matter . | . . . . . . . . . . . . . Retrieved Matter . | . . . . . . . . . . . . . Retrieved Components . | . . . . . . . . . . . . . Parts Scanalyzed . | . . . . . . . . . . . . . Part Schematics Acquired . | . . . . . . . . . . . . . Parts Damaged . | . . . . . . . . . . . . . Bothacking | -11 -10 -10 -8 -7 -7 -7 -7 -7 -6 -6 -5 -5 ------------ Run | Jun Mat Sub Mat Fac Low Low Zio Dee Pro Fac Fac Ext Used RIF Installer . | . . . . . . . . . . . . . Robots Hacked . | . . . . . . . . . . . . . Non-combat . | . . . . . . . . . . . . . Combat . | . . . . . . . . . . . . . Robot Hacks Applied . | . . . . . . . . . . . . . Relay Couplers Released . | . . . . . . . . . . . . . Fabnet Peak Effective % . | . . . . . . . . . . . . . Robots Rewired . | . . . . . . . . . . . . . Allies Hacked . | . . . . . . . . . . . . . Hacks Repelled . | . . . . . . . . . . . . . Allies | -11 -10 -10 -8 -7 -7 -7 -7 -7 -6 -6 -5 -5 -------- Run | Jun Mat Sub Mat Fac Low Low Zio Dee Pro Fac Fac Ext Total Allies 10 | . . . . . 3 . 7 . . . . . Largest Group 7 | . . . . . 3 3 7 7 . . . . Highest-Rated Group 315 | . . . . . 60 60 315 315 . . . . Highest-Rated Ally 96 | . . . . . 20 20 96 96 . . . . Total Orders . | . . . . . . . . . . . . . Ally Attacks 80 | . . . . . . . . 80 . . . . Total Damage 1838 | . . . . . . . . 1838 . . . . Kills 10 | . . . . . . . . 10 . . . . Allies Corrupted . | . . . . . . . . . . . . . Allies Melted . | . . . . . . . . . . . . . Intel | -11 -10 -10 -8 -7 -7 -7 -7 -7 -6 -6 -5 -5 ------- Run | Jun Mat Sub Mat Fac Low Low Zio Dee Pro Fac Fac Ext Robot Analysis Total 3 | . 3 . . . . . . . . . . . Derelict Logs Recovered 3 | . . . . . . 1 1 . 1 . . . Drone Launches . | . . . . . . . . . . . . . Drone Recoveries . | . . . . . . . . . . . . . Exploration | -11 -10 -10 -8 -7 -7 -7 -7 -7 -6 -6 -5 -5 ------------- Run | Jun Mat Sub Mat Fac Low Low Zio Dee Pro Fac Fac Ext Turns Passed 8925 | 158 988 3139 378 366 134 157 940 1057 267 19 1282 40 Spaces Moved 6994 | 66 372 1833 276 727 264 398 1177 803 208 10 784 76 Core 166 | 8 . . 2 . . . . 12 . . 68 76 Treads 2547 | 58 372 1833 101 . . . . 183 . . . . Legs 1298 | . . . . . . . . 364 208 10 716 . Wheels . | . . . . . . . . . . . . . Hover 14 | . . . . . . . . 14 . . . . Flight 2969 | . . . 173 727 264 398 1177 230 . . . . Fastest Speed 25 | 50 160 160 27 25 32 28 28 28 117 117 50 50 Average Speed 97 | 146 211 161 77 29 32 31 28 100 117 117 112 51 Slowest Speed 240 | 160 240 240 160 32 32 32 28 160 117 117 196 150 Overloaded Moves . | . . . . . . . . . . . . . Propulsion Burnouts . | . . . . . . . . . . . . . Robots Hopped 2 | . . . 2 . . . . . . . . . Cave-ins Triggered . | . . . . . . . . . . . . . Exploration Rate (%) 46 | 6 76 82 26 26 47 56 89 69 50 . 18 17 Regions Visited 12 Branch Regions 7 Pre-discovered Areas 4 | . . 1 . . . 1 2 . . . . . Known Exits Taken 5 | . . 1 . 1 1 1 1 . . . . . Unknown Exits Taken 7 | 1 1 . 1 . . . . 1 1 1 1 . Scrap Searched 13 | . . 5 . . 2 2 2 . 2 . . . Spaces Dug 38 | . . 21 . 3 3 3 2 . 4 . 2 . Terrain Destroyed 287 | . 19 178 . 20 3 3 2 3 54 . 5 . Melee 17 | . . . . 3 3 3 2 . 4 . 2 . Projectile 3 | . . . . . . . . . . . 3 . AOE 267 | . 19 178 . 17 . . . 3 50 . . . Terrain Rammed . | . . . . . . . . . . . . . Walls Destroyed . | . . . . . . . . . . . . . Machines Disabled . | . . . . . . . . . . . . . Actions | -11 -10 -10 -8 -7 -7 -7 -7 -7 -6 -6 -5 -5 --------- Run | Jun Mat Sub Mat Fac Low Low Zio Dee Pro Fac Fac Ext Total 8602 | 96 483 1978 378 851 304 419 1778 1018 218 16 985 78 Wait 957 | . 37 67 19 45 30 13 579 132 . 1 34 . Move 6978 | 65 371 1832 271 726 263 397 1176 802 207 9 783 76 Hop 2 | . . . 2 . . . . . . . . . Pick Up 68 | 6 6 2 6 3 1 1 7 18 . 1 17 . Fast Attach 59 | 7 1 3 7 13 1 1 1 16 . . 9 . Attach 21 | . . 1 1 6 1 . 2 1 . 2 6 1 Detach 19 | . . 2 2 7 2 . . 5 . . 1 . Swap 44 | . 9 5 3 3 . . 3 7 3 2 9 . Drop 67 | . 3 17 8 7 . 1 4 18 . 1 8 . Fire 290 | 17 53 40 49 14 . . 1 13 4 . 99 . Melee 41 | . . . . 9 6 6 5 6 4 . 5 . Ram 4 | . . . . . . . . . . . 3 1 Kick 11 | . . . . . . . . . . . 11 . Crush 14 | 1 3 . 10 . . . . . . . . . Escape Stasis 18 | . . . . 18 . . . . . . . . Rewire . | . . . . . . . . . . . . . Trap . | . . . . . . . . . . . . . Miscellaneous 9 | . . 9 . . . . . . . . . . Route ------- -11/Junkyard -10/Materials (discovered 4 exits: [*Mat x2] / [*Min] / *Sub) -10/Subcaves (discovered 2 exits: *Mat / [*Rec]) -8/Materials -7/Factory (discovered 4 exits: [*Fac] / Sto / *Low x2) -7/Lower Caves -7/Lower Caves -7/Zion (discovered 2 exits: *Dee / [*Pro]) -7/Deep Caves -6/Proximity Caves -6/Factory -5/Factory (discovered 7 exits: *Fac x4 / Upp / *Ext x2) -5/Extension History --------- Turn | Location | Event 7 | -11/Junkyard | Discovered new exit (range 16) 159 | -11/Junkyard | Entered Materials 312 | -10/Materials | Build established: Mutant 687 | -10/Materials | Discovered new exit (range 16) 837 | -10/Materials | Discovered new exit (range 11) 981 | -10/Materials | Discovered new exit (range 9) 999 | -10/Materials | Build established: Scavenger-Mutant 1125 | -10/Materials | Discovered new exit (range 10) 1147 | -10/Materials | Entered Subcaves 1148 | -10/Subcaves | A swath of the cavern ceiling suddenly collapsed 1209 | -10/Subcaves | Shifting Twisted Machinery released Scrap Shield 1210 | -10/Subcaves | Shifting Twisted Machinery released Spk. Treads 1531 | -10/Subcaves | Build established: Mutant 1628 | -10/Subcaves | Disturbed a concealed Subdweller 2126 | -10/Subcaves | Shifting Twisted Machinery released Battle Cannon 2635 | -10/Subcaves | Shifting Twisted Machinery released Sub. Monowheel 2700 | -10/Subcaves | Learned location of Zion (-7) 2700 | -10/Subcaves | Met a Zionite searching for "candidates" 2849 | -10/Subcaves | Visited Clippyterm 3013 | -10/Subcaves | Learned Factory garrison access intel 3300 | -10/Subcaves | Shifting Twisted Machinery released Sub. Shrapnel Launcher 3303 | -10/Subcaves | Shifting Twisted Machinery released Flamer 3691 | -10/Subcaves | Build established: Derelict-Mutant 3717 | -10/Subcaves | Ambushed by Subdweller buried in earth 3717 | -10/Subcaves | Ambushed by Subdweller buried in earth 3854 | -10/Subcaves | Discovered new exit (range 14) 4120 | -10/Subcaves | Discovered new exit (range 15) 4149 | -10/Subcaves | Identified exit to Materials 4181 | -10/Subcaves | Core integrity fell below 50% 4286 | -10/Subcaves | Entered Materials 4286 | -8/Materials | Evolved 4 slots: Propulsion x2, Utility x2 4652 | -8/Materials | Discovered new exit (range 11) 4664 | -8/Materials | Entered Factory 4664 | -7/Factory | Evolved 2 slots: Propulsion x1, Utility x1 4665 | -7/Factory | Loaded intel: 4 garrison access locations 4787 | -7/Factory | Garrison activated, responded to threat 4805 | -7/Factory | Identified exit to Storage 4805 | -7/Factory | Identified exit to Lower Caves 4911 | -7/Factory | Build established: Sprinter 4915 | -7/Factory | Repaired Lgt. Deuterium Engine 4932 | -7/Factory | Discovered new exit (range 15) 4933 | -7/Factory | Repaired VTOL Module 5030 | -7/Factory | Entered Lower Caves 5067 | -7/Lower Caves | Encountered a Warlord checkpoint 5127 | -7/Lower Caves | A Commander dispatched an escort 5127 | -7/Lower Caves | Learned Extension garrison access intel 5127 | -7/Lower Caves | Learned Armory trap positions 5134 | -7/Lower Caves | Discovered new exit (range 5) 5135 | -7/Lower Caves | Identified exit to Lower Caves 5164 | -7/Lower Caves | Entered another Lower Caves area 5164 | -7/Lower Caves | Accompanied by 3 allies 5165 | -7/Lower Caves | Commander's escort returned to base 5165 | -7/Lower Caves | Commander's escort returned to base 5173 | -7/Lower Caves | Spotted B-75 Beast 5262 | -7/Lower Caves | Attracted the attention of an 0b10 checkpoint 5291 | -7/Lower Caves | Discovered new exit (range 14) 5294 | -7/Lower Caves | Identified exit to Zion 5321 | -7/Lower Caves | Entered Zion 5337 | -7/Zion | Discovered new exit (range 16) 5367 | -7/Zion | Build established: Scout 5368 | -7/Zion | Identified exit to Deep Caves 5383 | -7/Zion | Learned location of Recycling (-7) 5427 | -7/Zion | Given A8's code to call for help 5460 | -7/Zion | Learned Factory emergency access door positions 5484 | -7/Zion | Found GAL Module 6023 | -7/Zion | Gained Derelict followers 6084 | -7/Zion | Visited the Megawrench Repair Shop 6084 | -7/Zion | Megawrench repaired 9 parts 6145 | -7/Zion | Enhanced Grunt warped into view, answering call for help 6145 | -7/Zion | Enhanced Grunt warped into view, answering call for help 6149 | -7/Zion | Saw the warning signs outside the Deep Caves entrance 6261 | -7/Zion | Entered Deep Caves 6261 | -7/Deep Caves | Accompanied by 7 allies 6423 | -7/Deep Caves | Attacked by Z-Imprinter 6449 | -7/Deep Caves | Allies destroyed Z-Imprinter 6478 | -7/Deep Caves | Lost 5 parts (1p4n) 6528 | -7/Deep Caves | Found Prototype Protection 6529 | -7/Deep Caves | Identified Zio. Weapon Casing 6658 | -7/Deep Caves | Found Zio. Weapon Casing 6664 | -7/Deep Caves | Found Zio. Weapon Casing 6687 | -7/Deep Caves | Found Prototype Protection 6735 | -7/Deep Caves | Build established: Scavenger-Mutant 6780 | -7/Deep Caves | Found Prototype Protection 6780 | -7/Deep Caves | Identified Zio. Heavy Carapace (x2) 6789 | -7/Deep Caves | Found Zio. Heavy Carapace 6803 | -7/Deep Caves | Found Zio. Heavy Carapace 6810 | -7/Deep Caves | Found Zio. Weapon Casing 6822 | -7/Deep Caves | Found Zio. Weapon Casing 6831 | -7/Deep Caves | Found Prototype Device 6831 | -7/Deep Caves | Identified Exp. Thermal Shield 7078 | -7/Deep Caves | Found Surveybot 24 Chip 7080 | -7/Deep Caves | Found Surveybot 24 Scanner 7311 | -7/Deep Caves | Discovered new exit (range 6) 7318 | -7/Deep Caves | Entered Proximity Caves 7536 | -6/Proximity Caves | Spotted B-75 Beast 7565 | -6/Proximity Caves | Discovered new exit (range 17) 7585 | -6/Proximity Caves | Entered Factory 7585 | -6/Factory | Evolved 2 slots: Propulsion x1, Utility x1 7593 | -6/Factory | Discovered new exit (range 7) 7604 | -6/Factory | Entered another Factory area 7604 | -5/Factory | Evolved 2 slots: Power x1, Utility x1 7605 | -5/Factory | Identified exit to Upper Caves 7611 | -5/Factory | Discovered new exit (range 24) 8340 | -5/Factory | Discovered new exit (range 4) 8348 | -5/Factory | Identified exit to Factory 8847 | -5/Factory | Released all parts (6) 8856 | -5/Factory | Spotted B-75 Beast 8860 | -5/Factory | Core integrity fell below 50% 8875 | -5/Factory | Lost 11 parts (3p4n3u1w) 8879 | -5/Factory | Discovered new exit (range 10) 8886 | -5/Factory | Entered Extension 8922 | -5/Extension | Core integrity fell below 20% 8926 | -5/Extension | Destroyed by S-27 Virus with Autogun Last Messages --------------- Downloaded coordinate data. 08879_ EXIT=FOUND 08886_ TLEQP6VAYKG,GXS>ODV:APRVO60DFZ2AP=P LOCATION=UNKNOWN GOAL=ESCAPE 08904_ DNIMWYYVMOZOIJ:MXK&HMD1/GC0%RP7XD 08904_ Connecting with Door Terminal... 08904_ Current location identified: Extension 08904_ ALERT: Suspicious activity at Terminal E011. Dispatching Investigation squad. 08909_ Slammed into Y-64 Sentinel. 08910_ Connecting with Door Terminal... 08910_ ALERT: Suspicious activity at Terminal E006. Dispatching Investigation squad. 08913_ Critical hit (Burn: +37). 08913_ Slug penetrates R-10 Processor. 08915_ R-10 Processor destroyed. 08916_ Penetrated by Slug. 08918_ Exp. Heat Sink destroyed. 08919_ System corrupted: Matter fused (-9). Map ----- +----------------------------------------------------+ | | | | | | | | | | | | | | | | | | | | | | | | | | | | | ?????????????????????????????????????????????????? | | ?????????????????????????????????????????????????? | | ?????????????????????????????????????????????????? | | ????????#####################????????????????????? | | ????????# #????????????????????? | | ????????# #????????????????????? | | ????????# #????????????????????? | | ????????# #????????????????????? | | ????????# gs #????????????????????? | | ######### b sus ####?????????????????? | | *%! g #?????????????????? | | = s @ #?????????????????? | | s #?????????????????? | | g ????????????? | | #########+###### ########### ##T### ???????????? | | ???????????????### #???????????#?????????????????? | | ????????????????? T????????????????????????????? | | ????????????????##""##???????????????????????????? | | ?????????????????????????????????????????????????? | | ?????????????????????????????????????????????????? | | ?????????????????????????????????????????????????? | | ?????????????????????????????????????????????????? | | ?????????????????????????????????????????????????? | | ?????????????????????????????????????????????????? | | ?????????????????????????????????????????????????? | | ?????????????????????????????????????????????????? | | ?????????????????????????????????????????????????? | | ?????????????????????????????????????????????????? | | ?????????????????????????????????????????????????? | | ?????????????????????????????????????????????????? | | ?????????????????????????????????????????????????? | | ?????????????????????????????????????????????????? | | ?????????????????????????????????????????????????? | | ?????????????????????????????????????????????????? | | ?????????????????????????????????????????????????? | | ?????????????????????????????????????????????????? | +----------------------------------------------------+ Best States ------------- Heat Dissipation 66 Energy Generation 40 Energy Capacity 290 Matter Stores 300 Matter Capacity 300 Sight Range 20 Robot Scan Range 15 Terrain Scan Range 24 Terrain Scan Density 2010 Jamming Range 14 Armor Coverage 1200 Weapon Shielding 100 Phase Shifting 5 Evasion (%) 65 Melee Accuracy 12 Recoil Reduction 3 Kinecelleration 40 Item Schematics ----------------- None Robot Schematics ------------------ None Fabricated ------------ Nothing Alien Tech Used ----------------- None Achievements -------------- None Challenges ------------ None Game ------ Seed MeleeHardlightDerivative Manual? 0 Play Time 01:15:07 Cumulative 641.2 hours Start 2023.06.23 @ 22:10:26 End 2023.06.24 @ 20:00:43 Sessions 3 Manual Loads 0 Difficulty Rogue Special Mode None Game No. 561 Rogue 346 Adventurer 112 Explorer 103 Win Type - Total 42 Types 26/0/8/3/0/0/4/1/0 Lore% 85 Gallery% 91 Achievement% 82 Wizard Run 0 Options --------- ASCII 0 Keyboard 1 Movement Vi Keybinds 1 Fullscreen 1 Font 36/TerminusBold Map View 76x50 Tactical HUD 1 Map Filters NONE Filters NONE Steam 1 RUN: 85101fbf-edc7-4fd6-96c5-c717d352cfc1